bitfinex/quotes_SOLUSD_20241021
["timestamp","ask_amount","ask_price","bid_price","bid_amount"]
[1729500843208,5.9863,167.05,167.02,23.776884]
[1729500843409,0.1,167.07,167.02,23.776884]
[1729500843609,5.9859,167.06,167.02,23.776884]
[1729500843993,5.9866,167.04,167.01,23.776884]
[1729500844508,0.1,167.07,167.01,23.776884]
[1729500844704,5.9861,167.06,167.01,23.776884]
[1729500846404,0.1,167.08,167.01,23.776884]
[1729500846608,5.9859,167.06,167.01,23.776884]
[1729500847814,0.1,167.08,167.01,23.776884]
[1729500848016,0.1,167.1,167.01,23.776884]
[1729500848512,6.0845,167.1,167.02,5.9873]
[1729500848719,0.1,167.1,167.03,23.776884]
[1729500848926,0.1,167.08,167.03,23.776884]
[1729500849105,0.1,167.07,167.0,6.5945]
[1729500849425,5.986,167.06,167.0,6.5945]
[1729500849605,0.1,167.07,167.0,6.5945]
[1729500849801,5.9859,167.06,167.0,6.5945]
[1729500850010,0.1,167.06,166.98,21.48895773]
[1729500850311,0.1,167.06,166.98,15.269]
[1729500850521,5.9857,167.07,167.0,5.9879]
[1729500850817,5.9848,167.09,167.02,5.9873]
[1729500851025,0.1,167.1,167.0,0.1]
[1729500851225,5.9849,167.09,167.02,5.9872]
[1729500851404,6.0845,167.1,167.03,20.9542]
[1729500851799,0.1,167.1,167.01,20.0]
[1729500851996,5.9854,167.08,167.01,25.9876]
[1729500852228,6.0846,167.1,167.02,20.9552]
[1729500852525,5.9847,167.1,167.03,20.9537]
[1729500852704,5.9847,167.1,167.03,14.9669]
[1729500852904,0.1,167.14,167.03,20.1]
[1729500853210,5.9831,167.14,167.06,14.9644]
[1729500853404,5.9831,167.14,167.06,21.5146]
[1729500853626,5.9831,167.14,167.08,5.985]
[1729500853809,5.9827,167.15,167.09,5.9847]
[1729500854004,0.1,167.18,167.12,5.9836]
[1729500854322,5.9819,167.17,167.09,14.9612]
[1729500855522,5.983,167.14,167.09,14.9612]
[1729500855704,5.9819,167.17,167.09,14.9612]
[1729500856103,5.9819,167.17,167.11,5.984]
[1729500856404,30.4999,167.21,167.09,14.9612]
[1729500856405,0.1,167.19,167.09,7.18401921]
[1729500856603,5.9817,167.18,167.09,7.18401921]
[1729500856805,5.9817,167.18,167.11,14.9602]
[1729500857002,5.9817,167.18,167.12,5.9836]
[1729500857826,15.548,167.21,167.13,5.9833]
[1729500857827,6.0811,167.2,167.13,5.9833]
[1729500858011,0.1,167.2,167.13,5.9833]
[1729500858211,5.9817,167.18,167.12,14.9593]
[1729500858525,0.1,167.2,167.13,5.9832]
[1729500858908,6.0812,167.19,167.12,20.9429]
[1729500859125,6.0812,167.19,167.07,20.9488]
[1729500859126,6.0833,167.14,167.07,20.9488]
[1729500859418,0.1,167.13,167.07,14.9634]
[1729500859619,6.0833,167.13,167.07,14.9634]
[1729500859817,5.9838,167.12,167.07,14.9634]
[1729500860029,6.0848,167.09,167.03,36.1003]
[1729500860234,0.1,167.1,167.03,30.1135]
[1729500860416,6.0845,167.1,167.04,5.9865]
[1729500861118,6.2343,167.09,166.98,6.21821703]
[1729500861323,6.2343,167.09,166.95,0.1]
[1729500861324,0.1,167.05,166.95,0.1]
[1729500861543,6.0858,167.06,166.99,5.9882]
[1729500861919,6.2343,167.09,166.99,5.9882]
[1729500861920,6.0862,167.05,166.99,5.9882]
[1729500862120,0.1,167.04,166.99,5.9882]
[1729500863439,0.1,167.06,166.99,14.9709]
[1729500863625,0.1,167.09,166.98,20.0]
[1729500864135,0.1,167.09,166.98,20.1]
[1729500864539,0.1,167.09,167.04,5.9865]
[1729500865115,0.1,167.06,167.02,20.9546]
[1729500865322,0.1,167.06,167.02,14.9677]
[1729500866816,6.0859,167.06,167.02,14.9677]
[1729500867220,0.1,167.03,166.98,6.21837711]
[1729500867443,0.1,167.04,166.98,5.9884]
[1729500867641,0.1,167.03,166.98,5.9884]
[1729500870123,6.087,167.03,166.98,5.9884]
[1729500870440,5.9875,167.02,166.97,20.9611]
[1729500870629,6.0877,167.01,166.95,5.9894]
[1729500870823,6.0883,167.0,166.95,5.9896]
[1729500871723,0.1,167.01,166.97,5.989]
[1729500872250,0.1,167.02,166.98,5.9887]
[1729500872423,0.1,167.01,166.92,20.0]
[1729500872618,0.1,167.0,166.92,20.0]
[1729500872926,15.8662,167.06,166.92,20.0]
[1729500872927,5.989,166.97,166.92,20.0]
[1729500873142,5.9901,166.94,166.9,6.4919]
[1729500873424,0.1,166.96,166.89,15.949376]
[1729500873827,5.9898,166.95,166.89,30.928376]
[1729500874042,0.1,166.96,166.89,0.604176]
[1729500874248,0.1,166.94,166.89,0.604176]
[1729500874449,0.1,166.96,166.89,0.604176]
[1729500874652,0.1,166.97,166.89,7.35290876]
[1729500874950,0.1,166.97,166.93,5.9903]
[1729500875126,0.1,166.97,166.9,13.11880753]
[1729500875323,0.1,166.97,166.91,5.9912]
[1729500875543,0.1,166.97,166.91,21.34777477]
[1729500875730,0.1,166.97,166.93,5.9904]
[1729500875935,0.1,166.97,166.92,20.968]
[1729500876846,0.1,166.97,166.92,14.9772]
[1729500877030,0.1,166.98,166.93,5.9905]
[1729500877433,0.1,166.98,166.93,12.70146366]
[1729500878329,0.1,166.97,166.93,12.70146366]
[1729500878528,0.1,166.98,166.93,12.70146366]
[1729500878924,0.1,166.97,166.92,14.9772]
[1729500879120,0.1,166.97,166.93,5.9901]
[1729500879824,6.0892,166.97,166.92,20.9679]
[1729500880020,0.1,166.96,166.92,20.9679]
[1729500880441,0.1,166.99,166.89,0.604176]
[1729500880758,0.1,166.99,166.95,5.9896]
[1729500881054,0.1,167.0,166.9,43.1244742]
[1729500881226,0.1,167.0,166.9,43.2244742]
[1729500881431,0.1,167.0,166.95,5.9896]
[1729500882045,0.1,166.98,166.94,5.9901]
[1729500882232,6.0885,166.99,166.94,5.9901]
[1729500882437,0.1,166.98,166.94,5.9901]
[1729500882638,0.1,166.97,166.9,36.66896366]
[1729500882858,0.1,166.98,166.93,14.9761]
[1729500883029,0.1,166.97,166.94,5.9901]
[1729500883357,0.1,166.98,166.95,5.9896]
[1729500883855,0.1,166.99,166.95,5.9896]
[1729500884533,0.1,167.03,166.91,21.6612]
[1729500884735,0.1,167.05,167.04,5.9865]
[1729500884929,6.5356,167.09,166.96,20.1]
[1729500884930,0.1,167.06,166.96,20.1]
[1729500885136,0.1,167.06,167.03,5.9866]
[1729500885556,0.1,167.06,166.98,14.9718]
[1729500885852,0.1,167.06,167.02,5.9872]
[1729500887658,0.1,167.06,167.03,5.9869]
[1729500887826,0.1,167.07,167.04,5.9864]
[1729500888961,0.1,167.06,167.03,20.9542]
[1729500889831,0.1,167.06,167.04,5.9865]
[1729500890463,0.1,167.06,167.03,20.9542]
[1729500891365,0.1,167.07,167.03,14.9673]
[1729500891549,0.1,167.07,167.04,5.9865]
[1729500893485,0.04904217,167.07,167.04,5.9865]
[1729500894169,0.04904217,167.08,167.04,5.9862]
[1729500894383,0.04904217,167.1,167.01,20.05095783]
[1729500894553,0.04904217,167.1,167.02,1.49764464]
[1729500895065,0.04904217,167.1,167.08,5.9851]
[1729500895457,0.04904217,167.11,167.08,5.9851]
[1729500896270,0.04904217,167.12,167.1,5.984]
[1729500896453,0.04904217,167.12,167.1,5.9841]
[1729500896975,0.04904217,167.14,167.11,5.984]
[1729500897180,0.04904217,167.14,167.06,49.9293]
[1729500897350,5.97018277,167.16,167.11,5.9839]
[1729500897555,6.5646,167.17,167.06,20.0]
[1729500897860,5.9822,167.16,167.1,5.9843]
[1729500898055,22.0494,167.19,167.06,20.1]
[1729500898254,22.0494,167.19,167.14,5.9829]
[1729500898450,28.0307,167.19,167.14,5.9829]
[1729500899465,5.9816,167.18,167.13,5.9833]
[1729500900166,5.9815,167.18,167.12,20.9417]
[1729500903560,5.982,167.17,167.12,20.9417]
[1729500904080,22.0494,167.19,167.09,29.9239]
[1729500904295,5.9801,167.22,167.16,5.9819]
[1729500904577,15.0291,167.23,167.16,5.9822]
[1729500904784,15.0291,167.23,167.1,7.40373276]
[1729500904965,15.0291,167.23,167.17,5.9816]
[1729500905170,12.3141,167.24,167.12,0.1]
[1729500905371,15.1034,167.27,167.14,20.0]
[1729500905877,5.9787,167.26,167.21,5.9801]
[1729500906077,22.6647,167.32,167.25,14.9474]
[1729500906378,28.6415,167.32,167.26,5.9785]
[1729500906580,16.1469,167.32,167.28,5.9777]
[1729500906885,5.9755,167.35,167.29,5.9775]
[1729500907061,15.0348,167.4,167.22,7.33713032]
[1729500907062,5.9748,167.37,167.31,5.9766]
[1729500907387,22.2557,167.4,167.3,14.9427]
[1729500907979,22.2557,167.4,167.26,6.2835]
[1729500908181,22.2557,167.4,167.32,5.9765]
[1729500908355,22.3557,167.4,167.32,5.9765]
[1729500908979,22.2557,167.4,167.32,5.9765]
[1729500909587,0.1,167.39,167.31,14.9422]
[1729500909881,5.9748,167.37,167.31,14.9422]
[1729500910087,5.9748,167.37,167.31,20.919]
[1729500910674,5.9748,167.37,167.31,19.919]
[1729500912569,22.2557,167.4,167.32,5.9765]
[1729500913088,5.9733,167.41,167.33,5.976]
[1729500913269,5.9741,167.39,167.33,5.976]
[1729500914089,5.9734,167.41,167.35,5.9754]
[1729500914476,5.9734,167.41,167.35,5.9751]
[1729500915764,22.6719,167.44,167.31,20.0]
[1729500915972,5.973,167.42,167.36,5.975]
[1729500916176,22.6719,167.44,167.36,5.975]
[1729500916395,5.9726,167.43,167.37,5.9745]
[1729500917681,0.2,167.4,167.24,29.8971]
[1729500917863,5.9759,167.34,167.28,5.9778]
[1729500918771,5.9759,167.34,167.29,5.9776]
[1729500919598,5.9755,167.35,167.29,5.9776]
[1729500920472,5.9757,167.35,167.29,5.9776]
[1729500922092,5.9758,167.34,167.29,5.9776]
[1729500923689,0.2,167.46,167.29,6.3506]
[1729500923987,5.9735,167.41,167.36,5.9751]
[1729500924195,5.973,167.42,167.36,5.9751]
[1729500924585,5.9733,167.41,167.36,5.9751]
[1729500925279,5.973,167.42,167.36,5.9751]
[1729500925477,5.9733,167.42,167.36,5.9751]
[1729500925984,5.9741,167.39,167.34,5.9758]
[1729500926184,22.7719,167.44,167.32,14.9413]
[1729500926475,14.9316,167.43,167.33,5.976]
[1729500927482,5.9743,167.39,167.33,5.976]
[1729500929301,14.9316,167.43,167.33,5.976]
[1729500929477,5.9742,167.39,167.33,5.976]
[1729500929873,14.9316,167.43,167.33,5.976]
[1729500930078,5.9746,167.38,167.33,5.976]
[1729500930798,5.9742,167.39,167.34,5.9757]
[1729500933097,14.9316,167.43,167.3,14.943]
[1729500933098,5.9752,167.36,167.3,14.943]
[1729500933702,5.9752,167.36,167.31,5.9766]
[1729500933877,5.9748,167.37,167.32,5.9765]
[1729500934783,5.9751,167.36,167.32,5.9765]
[1729500935389,20.2,167.4,167.3,14.943]
[1729500935596,5.9776,167.3,167.25,5.979]
[1729500935897,0.1,167.34,167.23,27.1367926]
[1729500936099,5.9781,167.28,167.23,27.1367926]
[1729500936403,5.9802,167.22,167.17,6.3782]
[1729500936588,5.9797,167.24,167.17,6.3782]
[1729500936993,5.9797,167.24,167.19,5.9811]
[1729500937696,5.9786,167.27,167.2,5.9808]
[1729500938000,14.9441,167.29,167.19,14.953]
[1729500938303,5.9791,167.25,167.2,5.9807]
[1729500938697,5.978,167.28,167.22,5.9798]
[1729500938882,5.9783,167.27,167.22,5.9798]
[1729500939496,5.9788,167.26,167.21,14.9507]
[1729500939882,20.2,167.32,167.21,14.9507]
[1729500940200,5.9779,167.29,167.22,5.9798]
[1729500940384,5.978,167.28,167.22,5.9798]
[1729500940795,5.978,167.28,167.18,26.21225911]
[1729500940796,6.4555,167.26,167.18,6.21225911]
[1729500940999,6.5555,167.26,167.17,14.9539]
[1729500941183,5.9796,167.24,167.18,14.9539]
[1729500942482,5.9796,167.24,167.19,5.9811]
[1729500943391,6.4555,167.26,167.13,29.9168]
[1729500943704,6.5555,167.26,167.15,25.9823]
[1729500944583,21.6025,167.26,167.14,14.9568]
[1729500944914,5.9804,167.22,167.16,5.9822]
[1729500945290,5.9805,167.21,167.16,5.9822]
[1729500945506,5.9805,167.21,167.14,14.9568]
[1729500945712,5.9805,167.21,167.15,5.9825]
[1729500945895,0.1,167.2,167.05,21.0895]
[1729500946097,5.9818,167.18,167.11,5.9837]
[1729500946304,31.4413,167.2,167.11,5.9837]
[1729500946488,5.982,167.17,167.11,5.9837]
[1729500946800,6.413,167.17,167.06,14.9645]
[1729500947004,5.9837,167.13,167.07,5.9855]
[1729500947507,5.9822,167.17,167.11,5.9839]
[1729500947710,5.9831,167.14,167.08,5.985]
[1729500947889,5.9826,167.15,167.09,5.9847]
[1729500949804,14.953,167.19,167.08,14.9628]
[1729500949805,15.053,167.19,167.08,14.9628]
[1729500950007,5.9833,167.14,167.08,20.9478]
[1729500950383,16.5889,167.2,167.06,29.9293]
[1729500950605,5.9812,167.19,167.13,5.9832]
[1729500950912,6.1594,167.21,167.13,5.9832]
[1729500950913,5.9815,167.18,167.13,5.9832]
[1729500951213,6.2594,167.21,167.11,14.9593]
[1729500951395,5.9821,167.17,167.11,20.9433]
[1729500952109,0.1,167.15,167.05,6.21912542]
[1729500952306,5.9842,167.11,167.06,1.49717083]
[1729500952805,5.9844,167.1,167.05,5.9862]
[1729500953004,5.9835,167.13,167.07,5.9855]
[1729500953212,0.1,167.17,167.07,5.9855]
[1729500953394,5.9833,167.13,167.07,5.9855]
[1729500953592,5.9833,167.13,167.08,5.9851]
[1729500954396,0.1,167.17,167.06,14.9646]
[1729500954589,5.984,167.12,167.07,1.49709735]
[1729500954911,5.984,167.12,167.06,20.9503]
[1729500954912,0.1,167.16,167.06,20.9503]
[1729500955101,5.9842,167.11,167.06,20.9503]
[1729500961513,5.9837,167.12,167.07,5.9854]
[1729500961718,5.9832,167.14,167.11,1.49602058]
[1729500962009,5.9834,167.13,167.11,1.49602058]
[1729500962312,5.9837,167.12,167.11,1.49602058]
[1729500964713,5.9843,167.11,167.06,1.49602058]
[1729500965503,5.9844,167.1,167.06,7.48172058]
[1729500965706,5.9844,167.1,167.06,1.49602058]
[1729500966718,14.9566,167.15,167.06,1.49602058]
[1729500966911,5.9843,167.11,167.06,7.48172058]
[1729500970321,15.0566,167.15,167.06,1.49602058]
[1729500970627,5.9843,167.11,167.06,1.49602058]
[1729500970927,5.9844,167.1,167.06,1.49602058]
[1729500971307,14.959,167.13,167.06,1.49602058]
[1729500971521,5.9849,167.09,167.06,1.49602058]
[1729500972423,0.1,167.15,167.06,1.49602058]
[1729500972645,5.9855,167.07,167.06,2.058e-05]
[1729500972807,5.9878,167.01,166.96,6.1411]
[1729500973007,0.1,167.07,166.95,5.9898]
[1729500973008,5.9882,167.0,166.95,5.9898]
[1729500973213,20.2,167.08,166.97,5.9889]
[1729500973917,15.1637,167.07,166.96,14.9734]
[1729500974225,15.1637,167.07,166.93,16.4816]
[1729500974226,14.9637,167.07,166.93,16.4816]
[1729500974431,0.1,167.09,167.0,5.988]
[1729500974614,5.9862,167.05,166.99,5.9883]
[1729500975821,5.9869,167.04,166.98,5.9887]
[1729500976311,5.9869,167.04,166.99,5.9883]
[1729500978412,0.1,167.09,166.97,14.9719]
[1729500978618,5.9866,167.04,166.98,5.9883]
[1729500979519,5.9866,167.04,166.94,34.46573978]
[1729500979832,14.9628,167.08,166.97,5.9887]
[1729500979833,5.987,167.03,166.97,5.9887]
[1729500980246,20.0,167.1,166.96,14.9736]
[1729500980247,5.988,167.01,166.96,14.9736]
[1729500980418,36.1865,167.04,166.93,37.4482]
[1729500980739,15.2336,167.04,166.93,16.4816]
[1729500981034,5.9877,167.01,166.96,5.9891]
[1729500981919,5.9877,167.01,166.95,14.9741]
[1729500981920,5.9879,167.01,166.95,20.9638]
[1729500982235,5.9879,167.01,166.96,5.9893]
[1729500982616,15.2336,167.04,166.97,5.9889]
[1729500983113,5.9876,167.02,166.97,5.9889]
[1729500983313,5.9876,167.01,166.97,5.9889]
[1729500983751,5.9865,167.05,166.93,16.4816]
[1729500983915,23.28526604,167.09,166.95,5.80060291]
[1729500983916,22.2492,167.09,166.95,5.80060291]
[1729500984114,5.9864,167.05,166.99,5.9881]
[1729500984616,5.9864,167.05,167.0,5.9879]
[1729500984936,5.9867,167.04,166.99,5.9883]
[1729500985119,5.9867,167.04,166.95,29.949]
[1729500985120,5.9867,167.04,166.98,5.9884]
[1729500985515,22.3492,167.09,166.93,16.5816]
[1729500985516,5.9883,167.0,166.94,5.99]
[1729500987634,5.9883,167.0,166.89,23.00529296]
[1729500987635,31.4444,167.02,166.89,16.787176]
[1729500987843,5.9882,167.0,166.94,5.9898]
[1729500988013,5.9882,167.0,166.95,5.9897]
[1729500988212,5.9882,167.0,166.94,5.9901]
[1729500989233,5.9878,167.01,166.96,5.9894]
[1729500989460,5.9878,167.01,166.95,5.9894]
[1729500989748,5.9887,166.98,166.89,16.787176]
[1729500989946,16.4761,167.02,166.9,1.49829817]
[1729500990240,5.9883,167.0,166.94,5.9901]
[1729500991741,16.4761,167.02,166.94,5.9901]
[1729500991930,16.4761,167.02,166.89,16.787176]
[1729500992247,5.9879,167.01,166.95,5.9895]
[1729500992753,5.9883,167.0,166.95,5.9895]
[1729500994026,16.4761,167.02,166.94,14.975]
[1729500994355,5.989,166.98,166.91,2.39725663]
[1729500994557,16.4761,167.02,166.95,5.9895]
[1729500994736,0.1,167.05,166.94,14.9751]
[1729500994933,5.9876,167.01,166.96,5.9893]
[1729500995127,26.31819377,167.07,166.97,5.9889]
[1729500995343,5.9874,167.02,166.97,5.9889]
[1729500995546,5.9876,167.02,166.96,20.9624]
[1729500996365,5.9876,167.02,166.97,23.776884]
[1729500996647,5.9886,166.99,166.97,23.776884]
[1729500996853,5.988,167.0,166.96,23.776884]
[1729500997449,26.21819377,167.07,166.96,23.776884]
[1729500997652,26.21819377,167.07,166.97,5.9889]
[1729500997947,6.21819377,167.07,166.99,5.9883]
[1729500998253,5.9869,167.03,166.98,23.776884]
[1729500998551,5.9855,167.07,167.02,5.9872]
[1729500998730,5.9849,167.09,167.03,29.763684]
[1729500999151,5.9851,167.08,167.03,29.763684]
[1729501000430,5.9847,167.1,167.04,5.9864]
[1729501000637,5.9847,167.1,167.05,23.776884]
[1729501001255,5.985,167.09,167.05,23.776884]
[1729501002043,5.9842,167.11,167.06,5.9858]
[1729501002334,21.16945169,167.15,167.07,5.9854]
[1729501002536,5.9837,167.13,167.07,5.9854]
[1729501002862,5.9839,167.12,167.07,5.9854]
[1729501003366,0.1,167.14,166.99,34.45158802]
[1729501003534,5.9851,167.09,167.0,47.6704728]
[1729501003839,5.9844,167.1,167.05,23.776884]
[1729501004839,5.9844,167.1,167.05,29.762984]
[1729501005465,14.9575,167.14,167.07,5.9853]
[1729501005466,5.983,167.14,167.07,5.9853]
[1729501005758,5.9838,167.12,167.07,5.9853]
[1729501006759,20.0,167.15,167.07,23.776884]
[1729501006959,14.9575,167.14,167.02,20.9551]
[1729501007133,5.9851,167.09,167.05,23.776884]
[1729501007467,5.9845,167.1,167.05,29.763084]
[1729501007834,14.9584,167.13,167.04,23.776884]
[1729501008364,15.0584,167.13,167.04,23.776884]
[1729501008662,0.1,167.11,167.01,5.9873]
[1729501008875,5.9858,167.06,167.02,1.49780761]
[1729501009363,5.9847,167.09,167.02,1.49780761]
[1729501009544,5.9862,167.05,167.0,20.9579]
[1729501009862,5.9859,167.06,167.01,7.48546038]
[1729501010154,5.9859,167.06,167.02,1.49786038]
[1729501010361,5.9856,167.07,167.02,7.48496038]
[1729501010560,5.9856,167.07,167.02,5.9871]
[1729501012147,5.9856,167.07,167.03,1.49790367]
[1729501012658,5.9859,167.06,167.03,1.49790367]
[1729501012839,5.9859,167.06,167.02,23.776884]
[1729501013034,5.9859,167.06,167.03,1.49791546]
[1729501013460,5.9859,167.06,167.02,23.776884]
[1729501014359,5.9859,167.06,167.03,1.49794628]
[1729501014569,5.9859,167.06,167.02,23.776884]
[1729501015942,5.9866,167.04,167.0,14.97]
[1729501016446,16.4313,167.08,167.01,1.49812316]
[1729501016648,5.9868,167.04,166.99,5.9883]
[1729501016861,5.9868,167.04,167.0,1.49817943]
[1729501017054,5.9868,167.04,167.01,1.49809628]
[1729501017248,5.9868,167.04,167.0,23.776884]
[1729501017454,5.9868,167.04,167.01,1.49809664]
[1729501017646,5.9868,167.04,167.0,23.776884]
[1729501017848,5.9868,167.04,167.01,1.49809792]
[1729501018049,5.9868,167.04,167.0,23.776884]
[1729501018256,5.9862,167.05,167.01,1.49809792]
[1729501018458,5.9862,167.05,167.02,1.49809792]
[1729501018659,5.9862,167.05,167.0,29.764784]
[1729501018863,5.9862,167.05,167.01,1.49806842]
[1729501019171,5.9862,167.05,167.0,29.764784]
[1729501019373,5.9862,167.05,167.01,1.4980752]
[1729501019545,5.9862,167.05,167.02,1.4980752]
[1729501019745,5.9862,167.05,167.0,29.764784]
[1729501020047,5.9862,167.05,167.01,1.49809673]
[1729501020347,5.9862,167.05,167.0,29.764784]
[1729501020559,5.9862,167.05,167.01,1.4980968]
[1729501020768,5.9862,167.05,167.0,29.764784]
[1729501020954,5.9862,167.05,167.01,1.49813773]
[1729501021147,5.9872,167.03,166.99,14.9708]
[1729501021345,5.9872,167.03,167.0,1.49813815]
[1729501021572,5.9872,167.03,166.99,14.9708]
[1729501021867,5.9872,167.03,167.0,1.49821029]
[1729501022049,5.9872,167.03,166.99,14.9708]
[1729501022249,5.9873,167.02,167.0,1.49821446]
[1729501022451,5.9873,167.02,166.98,23.776884]
[1729501022657,5.9873,167.02,166.99,1.49824494]
[1729501022870,5.9873,167.02,167.0,1.49824494]
[1729501023069,5.9873,167.02,166.98,23.776884]
[1729501023367,5.9873,167.02,166.99,1.49824923]
[1729501023566,5.9873,167.02,167.0,1.49824923]
[1729501024368,16.4313,167.08,167.02,1.49799759]
[1729501024566,5.987,167.03,166.99,5.988]
[1729501024765,5.987,167.03,167.0,1.4981194]
[1729501024953,5.987,167.03,166.94,15.4767]
[1729501024954,5.9876,167.01,166.95,5.9896]
[1729501025160,5.9876,167.01,166.96,1.49830473]
[1729501025358,0.1,167.05,166.97,1.49830473]
[1729501025670,5.988,167.0,166.98,1.49830473]
[1729501025873,15.0664,167.04,166.96,2.39704977]
[1729501026052,5.9882,167.0,166.97,1.49843772]
[1729501026255,5.9882,167.0,166.95,14.9744]
[1729501026545,5.9882,167.0,166.96,1.49848631]
[1729501026752,5.9882,167.0,166.97,1.49848631]
[1729501026968,14.9664,167.04,166.98,1.49848631]
[1729501026969,5.9883,166.99,166.98,1.49848631]
[1729501027267,5.9883,166.99,166.94,8.38694977]
[1729501027470,5.9883,166.99,166.95,1.49857946]
[1729501027767,5.9883,166.99,166.96,1.49857946]
[1729501027970,5.9883,166.99,166.97,1.49857946]
[1729501028272,5.9883,166.99,166.94,8.38694977]
[1729501028473,5.9883,166.99,166.95,1.49855876]
[1729501028669,5.9883,166.99,166.94,8.38694977]
[1729501028670,5.9883,166.99,166.94,5.9899]
[1729501028987,5.9876,167.02,166.96,29.766284]
[1729501029173,20.0,167.03,166.97,1.4985877]
[1729501029359,5.9876,167.01,166.96,29.766284]
[1729501029671,5.9883,167.0,166.97,1.49849366]
[1729501029846,5.9884,166.99,166.94,8.38768851]
[1729501030047,16.2084,167.02,166.95,7.48834593]
[1729501030048,5.9876,167.01,166.95,7.48834593]
[1729501030250,5.9881,167.0,166.96,1.49854593]
[1729501030447,5.9881,167.0,166.97,1.49854593]
[1729501030752,16.2084,167.02,166.95,2.39758851]
[1729501030952,5.9884,166.99,166.96,1.49850258]
[1729501031156,5.9884,166.99,166.97,1.49850258]
[1729501031360,5.9884,166.99,166.95,2.39758851]
[1729501031675,5.9884,166.99,166.96,1.49851802]
[1729501031861,5.9884,166.99,166.97,1.49851802]
[1729501032184,5.9884,166.99,166.94,8.38738851]
[1729501032360,5.9884,166.99,166.94,5.9898]
[1729501032672,5.9884,166.99,166.95,1.49853062]
[1729501032872,5.9884,166.99,166.96,1.49853062]
[1729501033077,5.9884,166.99,166.97,1.49853062]
[1729501033381,5.9884,166.99,166.94,8.387449]
[1729501033679,16.2084,167.02,166.95,1.49854619]
[1729501033854,5.9886,166.99,166.96,1.49854619]
[1729501034051,5.9886,166.99,166.97,1.49854619]
[1729501034276,5.9886,166.99,166.94,2.397649]
[1729501034485,5.9886,166.99,166.95,1.49854642]
[1729501034776,5.9886,166.99,166.96,1.49854642]
[1729501034970,5.9886,166.99,166.94,2.397649]
[1729501035276,5.9886,166.99,166.95,1.49857117]
[1729501035475,5.9886,166.99,166.96,1.49857117]
[1729501035677,5.9886,166.99,166.94,8.387749]
[1729501035856,5.9886,166.99,166.95,1.49856081]
[1729501036058,5.9886,166.99,166.96,1.49856081]
[1729501036266,5.9886,166.99,166.94,8.38777477]
[1729501036468,5.9886,166.99,166.95,1.49854754]
[1729501036677,5.9886,166.99,166.96,1.49854754]
[1729501036877,16.2084,167.02,166.94,2.39767477]
[1729501037060,5.9885,166.99,166.95,1.49854492]
[1729501037263,5.9885,166.99,166.96,1.49854492]
[1729501037460,16.2084,167.02,166.94,2.39767477]
[1729501037757,5.9886,166.99,166.95,1.4985453]
[1729501037967,16.2084,167.02,166.94,2.39767477]
[1729501037968,16.2084,167.02,166.96,1.4985453]
[1729501038167,16.2084,167.02,166.95,5.9897]
[1729501038168,5.9887,166.99,166.95,5.9897]
[1729501038366,5.9887,166.99,166.96,1.49851667]
[1729501038570,5.9887,166.99,166.94,8.38767477]
[1729501038766,5.9887,166.99,166.95,1.49854711]
[1729501038980,5.9887,166.99,166.96,1.49854711]
[1729501039158,5.9888,166.98,166.94,8.38767477]
[1729501039482,5.9888,166.98,166.95,1.49854692]
[1729501039681,5.9888,166.98,166.96,1.49854692]
[1729501039881,5.9888,166.98,166.94,2.39767477]